bitfinex-derivatives/quotes_SOLF0:USTF0_20240910
["timestamp","ask_amount","ask_price","bid_price","bid_amount"]
[1725993821638,23.80895752,137.71,137.61,17.44]
[1725993822031,3.6318,137.67,137.61,17.44]
[1725993823332,3.6315,137.68,137.61,17.44]
[1725993823837,3.6317,137.67,137.61,17.44]
[1725993824143,17.44,137.69,137.61,17.44]
[1725993824634,3.6315,137.68,137.61,17.44]
[1725993824934,23.80895752,137.71,137.61,17.44]
[1725993826037,3.632,137.66,137.61,17.44]
[1725993826342,23.80895752,137.71,137.61,17.44]
[1725993826941,17.44,137.69,137.58,23.28230531]
[1725993827141,17.44,137.69,137.58,17.44]
[1725993827343,17.44,137.69,137.58,23.28287046]
[1725993827539,17.44,137.67,137.57,0.2123]
[1725993827933,17.44,137.67,137.57,6.05562487]
[1725993828130,17.44,137.67,137.57,0.2123]
[1725993828131,3.6324,137.64,137.57,0.2123]
[1725993828648,3.6327,137.63,137.54,3.62126731]
[1725993828835,17.44,137.67,137.56,17.44]
[1725993829242,17.44,137.67,137.56,23.41252594]
[1725993829443,17.44,137.67,137.58,17.44]
[1725993830337,17.44,137.69,137.58,17.44]
[1725993831149,3.6318,137.67,137.58,17.44]
[1725993831338,17.44,137.69,137.58,17.44]
[1725993831739,3.632,137.66,137.58,17.44]
[1725993831950,17.44,137.69,137.58,17.44]
[1725993832746,3.6323,137.65,137.58,17.44]
[1725993832941,17.44,137.69,137.58,17.44]
[1725993833147,3.6326,137.64,137.58,17.44]
[1725993833343,17.44,137.69,137.58,17.44]
[1725993834448,3.6321,137.66,137.58,17.44]
[1725993835937,3.6317,137.67,137.58,17.44]
[1725993836133,23.80895752,137.71,137.61,17.44]
[1725993836535,3.6312,137.69,137.61,17.44]
[1725993837044,3.6311,137.7,137.61,17.44]
[1725993837345,23.80895752,137.71,137.61,17.44]
[1725993837649,17.44,137.66,137.56,0.127]
[1725993837840,17.44,137.66,137.57,17.44]
[1725993838646,17.44,137.66,137.26,23.285627]
[1725993838849,17.44,137.64,137.54,17.44]
[1725993839044,21.07560354,137.64,137.54,17.44]
[1725993839348,2.6361,137.65,137.56,17.44]
[1725993840033,17.44,137.64,137.55,0.2145]
[1725993840546,21.14854417,137.64,137.55,0.2145]
[1725993841242,3.6331,137.62,137.55,0.2145]
[1725993841748,3.6331,137.62,137.54,17.44]
[1725993841749,21.14854417,137.64,137.45,17.44]
[1725993842050,5.08624417,137.64,137.54,17.44]
[1725993842246,5.08624417,137.64,137.56,17.44]
[1725993842439,2.6361,137.65,137.56,17.44]
[1725993843035,2.6361,137.65,137.55,17.44]
[1725993843242,3.6331,137.62,137.55,17.44]
[1725993843541,20.0761,137.65,137.53,17.6538]
[1725993843542,3.62549171,137.63,137.53,17.6538]
[1725993843735,1.26,137.64,137.53,17.6538]
[1725993843940,3.6331,137.62,137.53,17.6538]
[1725993845646,1.26,137.64,137.55,17.44]
[1725993846040,3.6327,137.63,137.55,17.44]
[1725993846241,4.89837958,137.64,137.55,17.44]
[1725993846744,3.6331,137.62,137.55,17.44]
[1725993846944,4.89837958,137.64,137.55,17.44]
[1725993847345,3.6332,137.61,137.55,17.44]
[1725993848445,4.89837958,137.64,137.55,17.44]
[1725993848946,3.6334,137.61,137.55,17.44]
[1725993849153,4.89837958,137.64,137.55,17.44]
[1725993849947,3.6334,137.61,137.55,17.44]
[1725993850149,4.89837958,137.64,137.55,17.44]
[1725993850451,3.6332,137.61,137.55,17.44]
[1725993851256,3.6331,137.62,137.55,17.44]
[1725993851551,3.633,137.63,137.55,17.44]
[1725993851853,4.89837958,137.64,137.55,17.44]
[1725993852050,3.6331,137.62,137.55,17.44]
[1725993852354,17.44,137.63,137.53,17.6538]
[1725993852752,3.6337,137.6,137.53,17.6538]
[1725993853458,3.6333,137.61,137.53,17.6538]
[1725993853760,17.44,137.63,137.53,17.6538]
[1725993854052,3.6337,137.6,137.53,17.6538]
[1725993854844,3.6334,137.61,137.53,17.6538]
[1725993856044,3.6334,137.61,137.53,0.2138]
[1725993856251,11.17,137.54,137.43,5.85317317]
[1725993856447,11.17,137.51,137.46,11.17]
[1725993857150,7.21858396,137.54,137.47,11.17]
[1725993857151,11.17,137.53,137.47,11.17]
[1725993857554,7.2658,137.63,137.41,6.07202518]
[1725993857555,11.17,137.54,137.48,11.17]
[1725993858148,3.6348,137.55,137.46,17.47]
[1725993858352,4.89837958,137.64,137.46,17.47]
[1725993858559,17.47,137.6,137.5,17.47]
[1725993858958,17.47,137.6,137.55,3.6347]
[1725993859157,17.47,137.62,137.52,17.47]
[1725993860666,17.47,137.62,137.59,3.6336]
[1725993860869,17.47,137.62,137.52,17.47]
[1725993861164,17.47,137.62,137.58,3.6339]
[1725993862866,17.47,137.62,137.59,3.6337]
[1725993864762,17.47,137.62,137.58,3.6339]
[1725993867662,17.47,137.62,137.59,3.6337]
[1725993867864,17.47,137.62,137.52,17.47]
[1725993868257,17.47,137.62,137.58,3.6338]
[1725993868561,17.47,137.62,137.52,17.47]
[1725993868762,17.47,137.62,137.57,3.6341]
[1725993869969,17.47,137.61,137.5,17.47]
[1725993870365,17.47,137.61,137.56,3.6345]
[1725993870762,17.47,137.58,137.47,0.2114]
[1725993870965,4.82666751,137.57,137.47,21.32678544]
[1725993871256,1.2678,137.57,137.49,17.47]
[1725993871866,4.9022,137.57,137.49,17.47]
[1725993872570,6.1719,137.57,137.49,17.47]
[1725993873364,2.5375,137.57,137.49,17.47]
[1725993874863,3.6346,137.56,137.49,17.47]
[1725993875169,23.71530491,137.57,137.45,17.47]
[1725993875377,20.0075,137.57,137.45,17.47]
[1725993875670,3.6347,137.56,137.45,17.47]
[1725993875874,3.58089005,137.56,137.45,17.47]
[1725993876076,3.6351,137.54,137.45,17.47]
[1725993876676,8.54816475,137.56,137.45,17.47]
[1725993877067,17.47,137.53,137.44,5.86114938]
[1725993877269,3.6357,137.52,137.42,17.47]
[1725993877569,17.47,137.53,137.42,17.47]
[1725993878170,17.47,137.53,137.42,21.10613213]
[1725993878476,21.1056,137.53,137.42,21.10613213]
[1725993878877,4.91346475,137.56,137.47,17.47]
[1725993879175,1.2893,137.56,137.47,17.47]
[1725993879365,3.6349,137.55,137.47,17.47]
[1725993880171,1.2893,137.56,137.47,17.47]
[1725993881879,1.2893,137.56,137.43,5.86249263]
[1725993881880,17.47,137.54,137.43,5.86249263]
[1725993882074,17.47,137.54,137.43,3.55739851]
[1725993882273,17.47,137.54,137.43,9.42273524]
[1725993882471,3.6356,137.52,137.43,3.55739851]
[1725993882869,17.47,137.54,137.44,17.47]
[1725993883077,3.6354,137.53,137.44,17.47]
[1725993883671,3.6354,137.53,137.44,21.19653862]
[1725993883879,6.10814901,137.57,137.46,17.47]
[1725993884075,6.10814901,137.57,137.47,0.2154]
[1725993884881,3.6349,137.55,137.47,0.2154]
[1725993885078,6.10814901,137.57,137.47,0.2154]
[1725993885476,3.6347,137.56,137.47,0.2154]
[1725993885983,17.47,137.61,137.5,17.47]
[1725993886184,20.2038,137.61,137.5,17.47]
[1725993886576,20.2038,137.61,137.47,0.2154]
[1725993886577,2.7338,137.61,137.54,17.47]
[1725993886880,169.66248622,137.71,137.55,17.47]
[1725993887083,1.3592,137.66,137.57,17.47]
[1725993887381,17.47,137.69,137.59,17.47]
[1725993888284,4.0493,137.7,137.61,17.47]
[1725993890480,2.7338,137.7,137.61,17.47]
[1725993890681,6.3647,137.7,137.61,17.47]
[1725993891073,17.47,137.69,137.59,17.47]
[1725993891281,21.1013,137.69,137.59,17.47]
[1725993891481,17.47,137.69,137.59,17.47]
[1725993892081,2.7338,137.7,137.61,17.47]
[1725993892388,2.7338,137.7,137.61,21.17130813]
[1725993893884,2.7338,137.7,137.61,17.47]
[1725993894582,2.7338,137.7,137.61,21.10553757]
[1725993894986,6.3647,137.7,137.61,17.47]
[1725993895183,2.7338,137.7,137.62,3.54397696]
[1725993895787,2.7338,137.7,137.61,17.47]
[1725993896091,2.7338,137.7,137.62,3.66060773]
[1725993896388,1.3746,137.7,137.62,3.66060773]
[1725993898095,21.11924776,137.73,137.63,17.47]
[1725993898283,21.11924776,137.73,137.63,21.03649709]
[1725993898481,3.6303,137.72,137.63,21.03649709]
[1725993898888,21.11924776,137.73,137.63,21.03649709]
[1725993899094,24.74944776,137.73,137.63,21.03649709]
[1725993899394,21.11924776,137.73,137.63,21.03649709]
[1725993899594,24.74934776,137.73,137.63,21.03649709]
[1725993900393,17.47,137.71,137.62,0.2127]
[1725993900697,17.47,137.71,137.62,3.86052387]
[1725993900991,24.74944776,137.73,137.62,3.86052387]
[1725993901191,17.47,137.73,137.64,17.47]
[1725993901385,1.3335,137.74,137.67,17.47]
[1725993901595,17.47,137.78,137.69,17.47]
[1725993901798,3.56826273,137.79,137.69,17.47]
[1725993901994,17.47,137.8,137.69,17.47]
[1725993902593,3.6288,137.78,137.69,17.47]
[1725993902992,17.47,137.8,137.69,17.47]
[1725993903497,21.03862602,137.8,137.69,17.47]
[1725993903699,17.47,137.78,137.69,17.47]
[1725993903887,17.47,137.78,137.67,17.47]
[1725993904095,17.47,137.76,137.67,17.47]
[1725993904490,17.47,137.74,137.65,17.47]
[1725993904889,20.0328,137.74,137.65,17.47]
[1725993907192,23.6627,137.74,137.65,17.47]
[1725993908001,3.6301,137.73,137.65,17.47]
[1725993908591,20.0328,137.74,137.63,17.47]
[1725993909306,2.5628,137.74,137.67,17.47]
[1725993909599,2.5628,137.74,137.65,17.47]
[1725993910004,2.5628,137.74,137.62,3.86052387]
[1725993910199,20.0328,137.74,137.64,17.47]
[1725993910499,3.5664996,137.79,137.7,17.47]
[1725993910702,1.3798,137.78,137.7,17.47]
[1725993911095,5.0087,137.78,137.7,17.47]
[1725993911296,1.3798,137.78,137.7,17.47]
[1725993911997,1.3798,137.78,137.68,17.47]
[1725993911998,18.8498,137.78,137.68,17.47]
[1725993912399,1.3798,137.78,137.69,3.58139028]
[1725993913298,5.0085,137.78,137.68,17.47]
[1725993914304,1.3798,137.78,137.69,3.57796499]
[1725993916306,1.3053,137.79,137.73,17.47]
[1725993916600,1.363,137.8,137.73,17.47]
[1725993917698,17.47,137.83,137.73,17.47]
[1725993918008,18.831,137.85,137.75,17.47]
[1725993918695,1.361,137.85,137.75,17.47]
[1725993919302,3.6273,137.84,137.75,17.47]
[1725993919698,4.988,137.85,137.75,17.47]
[1725993919903,17.47,137.76,137.51,246.82]
[1725993920103,2.6909,137.75,137.63,0.1266]
[1725993920308,3.6301,137.73,137.64,21.15556142]
[1725993920513,18.7305,137.74,137.64,17.47]
[1725993920706,17.47,137.72,137.62,3.55307866]
[1725993920905,17.47,137.72,137.61,0.0872]
[1725993920906,18.7305,137.74,137.63,17.47]
[1725993921207,18.7305,137.74,137.64,17.47]
[1725993921412,3.6304,137.72,137.64,17.47]
[1725993921709,18.7305,137.74,137.62,3.76715357]
[1725993921904,18.7305,137.74,137.63,17.47]
[1725993921905,3.6301,137.73,137.63,17.47]
[1725993922104,29.1505,137.74,137.62,31.65715357]
[1725993922501,3.6304,137.72,137.62,31.65715357]
[1725993922813,29.1505,137.74,137.62,31.65715357]
[1725993923211,3.6304,137.72,137.62,31.65715357]
[1725993923710,29.1505,137.74,137.62,31.65715357]
[1725993925311,3.6306,137.71,137.62,31.65715357]
[1725993925619,29.1505,137.74,137.62,3.76715357]
[1725993927202,3.6303,137.73,137.62,3.76715357]
[1725993927707,29.1505,137.74,137.62,3.76715357]
[1725993928914,29.1505,137.74,137.64,27.89]
[1725993929416,1.2605,137.74,137.66,27.89]
[1725993930420,2.6909,137.75,137.66,27.89]
[1725993931021,27.89,137.8,137.69,27.89]
[1725993931314,1.3161,137.79,137.69,31.46693414]
[1725993934920,1.3161,137.79,137.71,27.89]
[1725993935613,1.3161,137.79,137.72,3.62926652]
[1725993936013,1.3161,137.79,137.71,27.89]
[1725993936217,1.2786,137.81,137.71,27.89]
[1725993936420,1.2786,137.81,137.73,27.89]
[1725993937215,1.2786,137.81,137.73,31.46246587]
[1725993938223,1.2786,137.81,137.73,27.89]
[1725993939222,1.2786,137.81,137.7,31.59498112]
[1725993944013,1.2786,137.81,137.73,27.89]
[1725993944313,1.2786,137.81,137.74,17.43]
[1725993947323,1.2786,137.81,137.71,0.2146]
[1725993947324,18.7086,137.81,137.72,17.43]
[1725993948227,17.43,137.77,137.63,225.0]
[1725993948430,4.91800093,137.76,137.66,17.43]
[1725993948932,3.6296,137.75,137.66,17.43]
[1725993949126,1.3153,137.76,137.69,17.43]
[1725993949330,18.7086,137.81,137.7,17.43]
[1725993949529,1.3758,137.8,137.7,17.43]
[1725993952330,17.43,137.79,137.7,17.43]
[1725993952630,7.32979883,137.78,137.7,17.43]
[1725993952832,3.70079883,137.78,137.68,17.43]
[1725993953032,3.6295,137.76,137.68,17.43]
[1725993953231,7.31178031,137.76,137.68,17.43]
[1725993953538,3.6295,137.76,137.68,17.43]
[1725993953930,7.31722694,137.76,137.68,17.43]
[1725993954131,3.6296,137.75,137.68,17.43]
[1725993955025,17.43,137.79,137.68,17.43]
[1725993955422,3.6294,137.76,137.68,17.43]
[1725993955631,3.59601975,137.76,137.68,17.43]
[1725993955830,17.43,137.79,137.68,17.43]
[1725993956025,3.6296,137.75,137.68,17.43]
[1725993956740,3.6298,137.74,137.68,17.43]
[1725993956935,3.64758861,137.76,137.68,17.43]
[1725993957327,7.27698861,137.76,137.68,17.43]
[1725993957525,3.64758861,137.76,137.68,17.43]
[1725993957931,7.27698861,137.76,137.68,17.43]
[1725993958234,3.64758861,137.76,137.68,17.43]
[1725993958529,3.6295,137.75,137.68,17.43]
[1725993959230,4.9171,137.75,137.67,17.43]
[1725993959625,3.6298,137.74,137.67,17.43]
[1725993960633,4.9172,137.75,137.67,17.43]
[1725993961738,3.6298,137.74,137.67,17.43]
[1725993961938,17.43,137.74,137.64,17.518]
[1725993962134,17.43,137.74,137.68,17.43]
[1725993962135,1.3829,137.74,137.68,17.43]
[1725993963141,17.43,137.72,137.53,0.2135]
[1725993963436,1.3829,137.74,137.53,0.2135]
[1725993963437,17.43,137.71,137.61,17.43]
[1725993963638,3.6312,137.69,137.62,5.87461846]
[1725993964138,3.6312,137.69,137.61,20.99976828]
[1725993964337,7.33680034,137.69,137.61,20.99976828]
[1725993964544,3.6312,137.69,137.62,5.87723819]
[1725993964839,21.03281833,137.69,137.6,0.1266]
[1725993965045,1.2799,137.68,137.6,0.1266]
[1725993965235,1.2799,137.68,137.6,3.7846228]
[1725993965435,1.2799,137.68,137.6,0.1266]
[1725993965636,3.6318,137.67,137.6,0.1266]
[1725993965837,1.2799,137.68,137.6,3.68267194]
[1725993966243,1.2799,137.68,137.61,17.43]
[1725993966840,1.2799,137.68,137.6,3.68267194]
[1725993967242,1.2799,137.68,137.61,17.43]
[1725993968537,1.3214,137.7,137.61,23.30797288]
[1725993968736,1.3214,137.7,137.61,17.43]
[1725993968935,1.3214,137.7,137.61,17.5192]
[1725993969448,17.43,137.71,137.63,17.43]
[1725993969941,18.7439,137.73,137.63,17.43]
[1725993970145,3.6303,137.72,137.63,17.43]
[1725993970541,18.7439,137.73,137.63,17.43]
[1725993970739,1.3829,137.74,137.65,17.43]
[1725993971845,17.43,137.71,137.63,5.87308824]
[1725993972041,17.43,137.69,137.62,5.87308824]
[1725993972251,1.3175,137.73,137.52,20.97674384]
[1725993972252,17.43,137.67,137.59,5.87962663]
[1725993972547,1.3175,137.73,137.57,5.87962663]
[1725993972548,17.43,137.63,137.57,5.87962663]
[1725993972746,17.43,137.61,137.54,5.88461933]
[1725993973051,17.43,137.61,137.53,0.0889]
[1725993973347,21.02581577,137.64,137.54,17.43]
[1725993973542,17.43,137.64,137.54,17.43]
[1725993974048,22.33786757,137.66,137.56,17.43]
[1725993974344,1.3175,137.66,137.58,17.43]
[1725993974546,1.3347,137.68,137.6,17.43]
[1725993974747,17.43,137.7,137.6,17.5189]
[1725993974942,20.0634,137.72,137.62,17.43]
[1725993975541,23.6939,137.72,137.62,17.43]
[1725993975951,20.0634,137.72,137.62,17.43]
[1725993976552,17.43,137.7,137.6,0.0889]
[1725993978155,3.54771582,137.69,137.6,0.0889]
[1725993978952,2.6334,137.72,137.57,0.1274]
[1725993978953,27.9,137.68,137.57,0.1274]
[1725993979147,31.52810685,137.68,137.57,3.70573708]
[1725993979454,31.52810685,137.68,137.57,0.2168]
[1725993979844,3.6318,137.67,137.57,3.9204697]
[1725993980252,31.4503643,137.68,137.57,0.2168]
[1725993980453,1.3767,137.66,137.57,0.2168]
[1725993980845,2.7239,137.66,137.57,0.2168]
[1725993981249,3.6322,137.65,137.57,0.2168]
[1725993982351,27.9,137.65,137.57,0.0894]
[1725993982543,27.9,137.65,137.54,27.9]
[1725993982949,3.6331,137.62,137.52,27.9]
[1725993983549,31.5328,137.63,137.52,27.9]
[1725993983855,27.9,137.65,137.53,5.88737596]
[1725993984054,27.9,137.65,137.52,27.9]
[1725993984852,3.6326,137.64,137.52,27.9]
[1725993985053,3.6326,137.64,137.53,5.88762966]
[1725993985250,27.9,137.65,137.52,27.9]
[1725993985444,27.9,137.65,137.51,0.2185]
[1725993985445,27.9,137.65,137.54,27.9]
[1725993989362,27.9,137.65,137.52,27.9]
[1725993989657,27.9,137.63,137.52,27.9]
[1725993989846,27.9,137.65,137.51,0.2185]
[1725993989847,27.9,137.61,137.51,0.2185]
[1725993990050,27.9,137.59,137.47,27.9]
[1725993990247,31.57812749,137.59,137.48,5.89257026]
[1725993990750,32.94702749,137.59,137.48,5.89257026]
[1725993991149,1.3689,137.59,137.49,27.9]
[1725993991347,1.3689,137.59,137.49,28.1184]
[1725993991559,1.3689,137.59,137.49,0.2184]
[1725993991763,27.9,137.58,137.49,0.2184]
[1725993992056,27.9,137.58,137.49,0.0895]
[1725993993359,27.9,137.58,137.52,3.6354]
[1725993994957,1.3689,137.59,137.52,3.6354]
[1725993995164,29.2689,137.59,137.47,31.51924838]
[1725993995666,29.2689,137.59,137.54,3.6349]
[1725993995862,29.2689,137.59,137.48,5.89317847]
[1725993996064,29.2689,137.59,137.47,31.51924838]
[1725993996263,29.2689,137.59,137.52,3.6356]
[1725993996462,27.9,137.57,137.45,27.9]
[1725993996658,27.9,137.57,137.5,3.636]
[1725993997256,27.9,137.57,137.46,5.89430236]
[1725993997459,27.9,137.57,137.51,3.6359]
[1725993997960,27.9,137.57,137.5,3.636]
[1725993998156,17.45,137.54,137.44,17.45]
[1725993998566,1.3644,137.53,137.44,17.45]
[1725993999361,2.6464,137.53,137.43,3.644908]
[1725993999562,17.45,137.52,137.43,3.644908]
[1725994000869,4.0029,137.53,137.44,17.45]
[1725994001167,2.6464,137.53,137.44,17.45]
[1725994002060,2.6464,137.53,137.46,17.45]
[1725994002471,2.6464,137.53,137.52,3.6356]
[1725994002769,1.3644,137.53,137.52,3.6356]
[1725994003569,1.3644,137.53,137.46,17.45]
[1725994003570,17.45,137.56,137.54,3.635]
[1725994003971,17.45,137.56,137.46,17.45]
[1725994004273,17.45,137.56,137.45,7.2749]
[1725994004468,17.45,137.56,137.46,17.45]
[1725994005070,17.45,137.55,137.46,17.45]
[1725994005264,17.45,137.55,137.51,3.6356]
[1725994007070,17.45,137.55,137.46,17.45]
[1725994007071,17.45,137.55,137.52,3.6356]
[1725994007378,17.45,137.55,137.46,17.45]
[1725994007769,17.45,137.55,137.51,3.6358]
[1725994008269,17.45,137.55,137.5,3.636]
[1725994008673,17.45,137.55,137.44,17.45]
[1725994008874,17.45,137.55,137.45,17.45]
[1725994009279,17.45,137.55,137.51,3.6357]
[1725994009577,17.45,137.55,137.45,17.45]
[1725994010079,17.45,137.55,137.51,3.6357]
[1725994011272,1.3743,137.57,137.51,3.6357]
[1725994011475,17.45,137.55,137.51,3.6357]
[1725994011866,17.45,137.55,137.52,3.6355]
[1725994012067,17.45,137.55,137.45,17.45]
[1725994012979,17.45,137.55,137.51,3.6358]
[1725994013480,17.45,137.55,137.44,17.45]
[1725994013975,17.45,137.55,137.5,3.636]
[1725994014580,17.45,137.55,137.49,3.6363]
[1725994014873,17.45,137.55,137.44,17.45]
[1725994015073,17.45,137.55,137.5,3.6361]
[1725994015274,17.45,137.55,137.44,17.45]
[1725994016178,17.45,137.55,137.5,3.636]
[1725994017283,1.3743,137.57,137.42,17.45]
[1725994017284,17.45,137.51,137.42,17.45]
[1725994017480,17.45,137.51,137.42,3.63824819]
[1725994017481,2.6154,137.5,137.42,3.63824819]
[1725994017679,2.6154,137.5,137.4,24.8561]
[1725994017878,3.9891,137.5,137.46,3.6371]
[1725994018074,3.9891,137.5,137.4,17.5789]
[1725994019187,3.9891,137.5,137.46,3.637]
[1725994019380,3.9891,137.5,137.42,3.59024252]
[1725994019583,3.9891,137.5,137.4,17.5789]
[1725994019774,3.9891,137.5,137.47,3.6369]
[1725994020180,3.9891,137.5,137.42,3.57974388]
[1725994020379,3.9891,137.5,137.4,17.5789]
[1725994020577,3.9891,137.5,137.42,17.45]
[1725994020789,2.6154,137.5,137.44,17.45]
[1725994020980,2.6154,137.5,137.49,3.6364]
[1725994021381,2.6154,137.5,137.48,3.6366]
[1725994021681,2.6154,137.5,137.44,21.16107392]
[1725994022183,1.3039,137.53,137.49,3.6364]
[1725994022385,1.3039,137.53,137.45,17.45]
[1725994022785,1.3039,137.53,137.51,3.6359]
[1725994023292,1.3039,137.53,137.45,17.45]
[1725994024188,2.6014,137.53,137.45,17.45]
[1725994027387,1.2768,137.52,137.44,3.71107392]
[1725994027593,21.04424299,137.51,137.41,17.45]
[1725994027993,17.45,137.51,137.41,17.45]
[1725994029590,17.45,137.49,137.36,0.0898]
[1725994029893,21.0866,137.49,137.38,17.45]
[1725994030599,17.45,137.47,137.38,17.45]
[1725994030792,1.2837,137.46,137.38,17.45]
[1725994030983,2.5447,137.46,137.38,17.45]
[1725994034407,17.45,137.45,137.35,3.60943519]
[1725994034598,21.14550978,137.45,137.34,17.45]
[1725994034802,21.14550978,137.45,137.35,3.6594862]
[1725994035002,17.45,137.45,137.35,17.45]
[1725994035308,17.45,137.45,137.35,21.1724365]
[1725994035510,17.45,137.43,137.35,3.7224365]
[1725994035704,17.45,137.43,137.33,17.45]
[1725994035705,17.45,137.45,137.33,17.45]
[1725994036111,3.62951368,137.44,137.33,21.08315375]
[1725994036807,17.45,137.45,137.35,17.45]
[1725994037004,21.1639633,137.45,137.35,17.45]
[1725994037405,2.5447,137.46,137.35,17.45]
[1725994037607,2.5447,137.46,137.37,17.45]
[1725994039015,2.5447,137.46,137.39,17.45]
[1725994039214,2.5447,137.46,137.4,3.62663875]
[1725994040303,2.5447,137.46,137.39,17.45]
[1725994040701,17.45,137.44,137.27,225.0]
[1725994040913,17.45,137.42,137.31,17.45]
[1725994041115,21.0883,137.42,137.31,17.45]
[1725994041413,17.45,137.42,137.31,17.45]
[1725994041609,21.06754213,137.42,137.31,21.03079181]
[1725994041809,17.45,137.42,137.31,21.03079181]
[1725994042216,3.6385,137.41,137.31,21.03079181]
[1725994042604,4.9276,137.41,137.31,21.03079181]
[1725994042817,1.2891,137.41,137.31,21.03079181]
[1725994043018,17.45,137.4,137.31,17.45]
[1725994043218,20.161,137.4,137.31,21.04462608]
[1725994043410,23.8,137.4,137.31,21.04462608]
[1725994043612,20.161,137.4,137.31,21.04462608]
[1725994045618,23.7998,137.4,137.31,3.59462608]
[1725994045917,23.7998,137.4,137.3,17.45]
[1725994046316,20.161,137.4,137.3,17.45]
[1725994046520,17.45,137.38,137.28,21.22444401]
[1725994046907,3.6397,137.37,137.28,21.22444401]
[1725994047217,17.45,137.38,137.28,21.22444401]
[1725994047421,21.0895,137.38,137.28,21.22444401]
[1725994047610,17.45,137.38,137.28,21.00484401]
[1725994047917,21.0895,137.38,137.28,21.00484401]
[1725994048311,17.45,137.38,137.28,21.00484401]
[1725994049112,3.64,137.36,137.21,0.2208]
[1725994049317,3.64,137.36,137.26,17.45]
[1725994049621,3.64,137.36,137.26,21.06133669]
[1725994050011,20.161,137.4,137.21,0.2208]
[1725994050012,17.45,137.34,137.21,0.2208]
[1725994050212,4.1622,137.33,137.28,3.6418]
[1725994050419,4.1622,137.33,137.25,3.73150823]
[1725994050714,17.45,137.38,137.27,17.45]
[1725994050915,17.45,137.38,137.29,17.45]
[1725994051221,2.7887,137.39,137.31,17.45]
[1725994052523,17.45,137.36,137.27,0.2249]
[1725994053016,2.7887,137.39,137.26,21.12234411]
[1725994053213,17.45,137.36,137.26,21.12234411]
[1725994055023,17.45,137.36,137.3,3.6413]
[1725994055218,17.45,137.36,137.26,17.45]
[1725994055522,1.3547,137.35,137.31,3.6412]
[1725994056121,1.3547,137.35,137.3,3.6413]
[1725994056524,1.3547,137.35,137.26,21.1236074]
[1725994056821,20.2387,137.39,137.33,3.6405]
[1725994057223,17.45,137.36,137.31,3.6411]
[1725994057427,17.45,137.36,137.27,0.2239]
[1725994057725,3.6204406,137.35,137.29,3.6416]
[1725994058024,1.3972,137.35,137.29,3.6416]
[1725994058722,17.45,137.37,137.25,21.04677044]
[1725994059113,1.3171,137.38,137.27,17.45]
[1725994059824,1.3171,137.38,137.31,3.641]
[1725994060221,1.3171,137.38,137.31,3.6411]
[1725994060923,1.3171,137.38,137.27,21.01342303]
[1725994062427,17.45,137.37,137.27,21.01342303]
[1725994062725,17.45,137.37,137.26,0.2216]